bitfinex-derivatives/quotes_BTCF0:USTF0_20250912
["timestamp","ask_amount","ask_price","bid_price","bid_amount"]
[1757657762608,0.14384,115470.0,115460.0,1.79921004]
[1757657763716,0.39384,115470.0,115460.0,1.00681004]
[1757657763914,0.54084002,115470.0,115460.0,0.908047]
[1757657764118,0.41708,115470.0,115460.0,1.03180702]
[1757657764801,0.41708,115470.0,115460.0,1.15556704]
[1757657765006,0.41708,115470.0,115460.0,0.908047]
[1757657765212,0.41708,115470.0,115460.0,1.15556704]
[1757657765605,0.41708,115470.0,115460.0,0.908047]
[1757657765802,0.41708,115470.0,115460.0,1.15556704]
[1757657767516,0.41708,115470.0,115460.0,0.908047]
[1757657767718,0.41708,115470.0,115460.0,1.15556704]
[1757657768216,0.41708,115470.0,115460.0,0.36316704]
[1757657768616,0.41708,115470.0,115460.0,1.15544704]
[1757657774126,0.41708,115470.0,115460.0,0.36316704]
[1757657774417,0.41708,115470.0,115460.0,1.15540704]
[1757657774718,0.41708,115470.0,115460.0,1.15536704]
[1757657774913,0.41708,115470.0,115460.0,1.07741004]
[1757657775516,0.41708,115470.0,115460.0,1.15536704]
[1757657779215,0.41708,115470.0,115460.0,0.907847]
[1757657779420,0.43694446,115470.0,115460.0,1.15536704]
[1757657780021,0.43694446,115470.0,115460.0,0.907847]
[1757657780219,0.43694446,115470.0,115460.0,1.15536704]
[1757657782824,0.43694446,115470.0,115460.0,0.36316704]
[1757657783122,0.43694446,115470.0,115460.0,1.15524704]
[1757657784226,0.43694446,115470.0,115460.0,0.82977]
[1757657784424,0.43694446,115470.0,115460.0,0.95353002]
[1757657784925,0.43694446,115470.0,115460.0,0.95349002]
[1757657785124,0.43694446,115470.0,115460.0,0.95345002]
[1757657787325,0.43694446,115470.0,115460.0,1.07721004]
[1757657788130,0.43694446,115470.0,115460.0,0.82969]
[1757657788630,0.43694446,115470.0,115460.0,1.07721004]
[1757657791733,0.43694446,115470.0,115460.0,1.07713004]
[1757657793725,0.43694446,115470.0,115460.0,1.43793004]
[1757657794335,0.43694446,115470.0,115460.0,1.51588704]
[1757657794531,0.18694446,115470.0,115460.0,1.63964706]
[1757657794736,0.16370446,115470.0,115460.0,1.81169006]
[1757657794937,0.16370446,115470.0,115460.0,1.920824]
[1757657795338,0.16370446,115470.0,115460.0,1.68793004]
[1757657795741,0.16370446,115470.0,115460.0,1.920824]
[1757657795944,0.16370446,115470.0,115460.0,1.99876853]
[1757657796248,0.16370446,115470.0,115460.0,1.920824]
[1757657796544,0.16370446,115470.0,115460.0,1.88962639]
[1757657797044,0.16370446,115470.0,115460.0,1.81169006]
[1757657799345,0.16370446,115470.0,115460.0,1.56169006]
[1757657799642,0.16370446,115470.0,115460.0,1.670824]
[1757657800245,0.16370446,115470.0,115460.0,1.920824]
[1757657807951,0.16370446,115470.0,115460.0,1.128904]
[1757657808154,0.16370446,115470.0,115460.0,1.920544]
[1757657809149,0.16370446,115470.0,115460.0,1.83496465]
[1757657809651,0.16370446,115470.0,115460.0,1.63925191]
[1757657810949,0.16370446,115470.0,115460.0,0.84761191]
[1757657811253,0.14384,115470.0,115460.0,1.72575071]
[1757657812954,0.14384,115470.0,115460.0,1.97575071]
[1757657813157,0.14384,115470.0,115460.0,2.0070428]
[1757657815659,0.14384,115470.0,115460.0,1.2154828]
[1757657815857,0.14384,115470.0,115460.0,2.0069628]
[1757657816158,0.10884,115470.0,115460.0,2.0069628]
[1757657816362,0.06265,115470.0,115460.0,2.0069628]
[1757657816859,0.06265,115470.0,115460.0,1.89782886]
[1757657818060,0.12463834,115500.0,115490.0,0.02257]
[1757657818260,0.12463834,115500.0,115490.0,0.93777002]
[1757657818559,0.01984044,115500.0,115490.0,1.43630004]
[1757657819159,0.01984044,115500.0,115490.0,1.51412131]
[1757657819461,0.02084044,115500.0,115490.0,1.51512131]
[1757657820349,0.02084044,115500.0,115490.0,1.51508131]
[1757657820553,0.02084044,115500.0,115490.0,0.72368131]
[1757657820749,0.02084044,115500.0,115490.0,1.51508131]
[1757657821466,0.001,115500.0,115490.0,1.51508131]
[1757657822350,0.001,115500.0,115490.0,1.44610256]
[1757657824263,0.001,115500.0,115490.0,1.52392383]
[1757657824565,0.001,115500.0,115490.0,1.64747225]
[1757657826971,0.001,115500.0,115490.0,1.83300648]
[1757657827472,0.001,115500.0,115490.0,1.75518521]
[1757657830364,0.001,115500.0,115490.0,0.96378521]
[1757657830568,0.001,115500.0,115490.0,1.75494521]
[1757657833070,0.001,115500.0,115490.0,1.83276648]
[1757657835771,0.001,115500.0,115490.0,1.75494521]
[1757657836571,0.001,115500.0,115490.0,1.83276648]
[1757657838674,0.001,115500.0,115490.0,1.75494521]
[1757657842378,0.001,115500.0,115490.0,0.96378521]
[1757657842569,0.001,115500.0,115490.0,1.75474521]
[1757657843073,0.001,115500.0,115490.0,1.83256648]
[1757657843471,0.001,115500.0,115490.0,1.75474521]
[1757657844073,0.001,115500.0,115490.0,1.83256648]
[1757657847375,0.001,115500.0,115490.0,1.75474521]
[1757657848378,0.001,115500.0,115490.0,1.86387915]
[1757657854581,0.02307,115500.0,115490.0,1.86367915]
[1757657854781,0.02307,115500.0,115490.0,0.88738492]
[1757657854979,0.02307,115500.0,115490.0,1.67810492]
[1757657855182,0.02307,115500.0,115490.0,1.68675492]
[1757657855382,0.02307,115500.0,115490.0,0.89603492]
[1757657855688,0.02307,115500.0,115490.0,1.68675492]
[1757657855886,0.02307,115500.0,115490.0,1.57762098]
[1757657856285,0.02307,115500.0,115490.0,1.56873846]
[1757657857492,0.02307,115500.0,115490.0,0.77805846]
[1757657857684,0.03662,115500.0,115490.0,1.56873846]
[1757657858993,0.03662,115500.0,115490.0,0.77805846]
[1757657859194,0.03662,115500.0,115490.0,1.56869846]
[1757657859393,0.03662,115500.0,115490.0,1.64661998]
[1757657863398,0.02307,115500.0,115490.0,1.64661998]
[1757657867900,0.02307,115500.0,115490.0,1.56869846]
[1757657868095,0.02307,115500.0,115490.0,1.19763]
[1757657868406,0.02307,115500.0,115490.0,1.64649998]
[1757657870007,0.02307,115500.0,115490.0,1.56857846]
[1757657871107,0.02307,115500.0,115490.0,1.56853846]
[1757657872409,0.02307,115500.0,115490.0,1.64645998]
[1757657880214,0.02307,115500.0,115490.0,0.85597998]
[1757657880417,0.02307,115500.0,115490.0,0.8871924]
[1757657880615,0.02307,115500.0,115490.0,1.6775524]
[1757657880815,0.02307,115500.0,115490.0,1.56841846]
[1757657882511,0.02307,115500.0,115490.0,1.6775524]
[1757657883821,0.02307,115500.0,115490.0,1.56841846]
[1757657884416,0.02307,115500.0,115490.0,1.44475546]
[1757657886113,0.001,115500.0,115490.0,1.44475546]
[1757657887722,0.02209,115500.0,115490.0,0.65439546]
[1757657887915,0.02209,115500.0,115490.0,1.44467546]
[1757657888116,0.02209,115500.0,115490.0,1.5538094]
[1757657889419,0.02209,115500.0,115490.0,0.7635294]
[1757657889615,0.02209,115500.0,115490.0,1.5538094]
[1757657890022,0.02209,115500.0,115490.0,1.5537694]
[1757657890821,0.02209,115500.0,115490.0,0.7635294]
[1757657891027,0.02209,115500.0,115490.0,1.5537694]
[1757657891622,0.02209,115500.0,115490.0,0.7635294]
[1757657891828,0.02209,115500.0,115490.0,1.5537694]
[1757657893724,0.001,115500.0,115490.0,1.5537694]
[1757657897016,0.001,115500.0,115490.0,1.5537294]
[1757657897924,0.001,115500.0,115490.0,1.44459546]
[1757657900125,0.001,115500.0,115490.0,1.52252921]
[1757657901925,0.001,115500.0,115490.0,1.5537294]
[1757657903825,0.02304,115500.0,115490.0,0.7635294]
[1757657904021,0.02304,115500.0,115490.0,1.5536494]
[1757657904730,0.001,115500.0,115490.0,1.5536494]
[1757657905525,0.001,115500.0,115490.0,1.44451546]
[1757657906830,0.001,115500.0,115490.0,1.52245289]
[1757657909627,0.001,115500.0,115490.0,1.44451546]
[1757657912434,0.001,115500.0,115490.0,1.19711]
[1757657912730,0.001,115500.0,115490.0,1.44451546]
[1757657913733,0.001,115500.0,115490.0,0.65439546]
[1757657914234,0.01416,115500.0,115490.0,1.5223744]
[1757657914428,0.0362,115500.0,115490.0,0.59466167]
[1757657914634,0.0362,115500.0,115490.0,1.5084044]
[1757657915536,0.0362,115500.0,115490.0,1.5395994]
[1757657915735,0.0362,115500.0,115490.0,0.7495594]
[1757657916138,0.0362,115500.0,115490.0,1.5395594]
[1757657916739,0.0362,115500.0,115490.0,1.5524694]
[1757657917332,0.0362,115500.0,115490.0,0.7624694]
[1757657917537,0.0362,115500.0,115490.0,0.73127075]
[1757657917739,0.0362,115500.0,115490.0,1.16047075]
[1757657918037,0.0362,115500.0,115490.0,1.52127075]
[1757657918734,0.0362,115500.0,115490.0,0.73127075]
[1757657919235,0.0362,115500.0,115490.0,1.52127075]
[1757657919737,0.0362,115500.0,115490.0,1.44333546]
[1757657920041,0.0362,115500.0,115490.0,1.52126429]
[1757657920239,0.02304,115500.0,115490.0,1.52126429]
[1757657925042,0.02304,115500.0,115490.0,0.73126429]
[1757657925342,0.02304,115500.0,115490.0,1.52122429]
[1757657927042,0.02304,115500.0,115490.0,0.73126429]
[1757657927343,0.02304,115500.0,115490.0,1.52118429]
[1757657927742,0.02304,115500.0,115490.0,0.48385883]
[1757657927937,0.77070273,115500.0,115490.0,0.11014883]
[1757657928345,0.77070273,115500.0,115490.0,0.15592273]
[1757657928643,0.647,115500.0,115490.0,0.15592273]
[1757657937140,0.2862,115500.0,115490.0,0.15592273]
[1757657939955,0.2862,115500.0,115490.0,0.51672273]
[1757657942455,0.001,115500.0,115490.0,0.90323546]
[1757657942846,0.001,115500.0,115490.0,0.98116429]
[1757657944364,0.001,115500.0,115490.0,1.02691876]
[1757657947468,0.001,115500.0,115490.0,1.81671876]
[1757657950366,0.001,115500.0,115490.0,1.89464759]
[1757657950665,0.001,115500.0,115490.0,1.89460759]
[1757657950969,0.01455,115500.0,115490.0,1.89460759]
[1757657951463,0.01455,115500.0,115490.0,1.10484759]
[1757657951658,0.01455,115500.0,115490.0,1.89460759]
[1757657952370,0.001,115500.0,115490.0,1.89460759]
[1757657953365,0.001,115500.0,115490.0,1.81667876]
[1757657960469,0.001,115500.0,115490.0,1.89460759]
[1757657961165,0.001,115500.0,115490.0,1.81667876]
[1757657963780,0.001,115500.0,115490.0,1.89460759]
[1757657968774,0.001,115500.0,115490.0,1.81667876]
[1757657971079,0.001,115500.0,115490.0,1.44559]
[1757657971283,0.001,115500.0,115490.0,1.81667876]
[1757657972179,0.001,115500.0,115490.0,1.02691876]
[1757657972380,0.001,115500.0,115490.0,1.81643876]
[1757657974179,0.001,115500.0,115490.0,1.02691876]
[1757657974380,0.001,115500.0,115490.0,1.81643876]
[1757657974570,0.02232,115500.0,115490.0,1.02691876]
[1757657974775,0.02232,115500.0,115490.0,1.81643876]
[1757657975175,0.02232,115500.0,115490.0,1.89436759]
[1757657978977,0.02232,115500.0,115490.0,1.53356759]
[1757657979183,0.02232,115500.0,115490.0,1.89436759]
[1757657979382,0.02232,115500.0,115490.0,1.64436759]
[1757657982188,0.02232,115500.0,115490.0,0.85484759]
[1757657982388,0.02232,115500.0,115490.0,1.64424759]
[1757657986892,0.02232,115500.0,115490.0,1.56631876]
[1757657987190,0.47182438,115500.0,115490.0,0.21776438]
[1757657987394,0.83262438,115500.0,115490.0,0.21776438]
[1757657988896,0.83262438,115500.0,115490.0,0.03222]
[1757657989093,0.83262438,115500.0,115490.0,0.21776438]
[1757657990193,0.47182438,115500.0,115490.0,0.21776438]
[1757657990400,0.47182438,115500.0,115490.0,0.29569321]
[1757657992196,0.28628,115500.0,115490.0,0.29569321]
[1757657992400,0.47182438,115500.0,115490.0,0.29569321]
[1757657993904,0.47182438,115500.0,115490.0,0.21776438]
[1757657994507,0.47182438,115500.0,115490.0,0.29569321]
[1757657994702,0.47182438,115500.0,115490.0,0.21776438]
[1757657995099,0.47182438,115500.0,115490.0,0.03222]
[1757657995308,0.47182438,115500.0,115490.0,0.21776438]
[1757657997206,0.47182438,115500.0,115490.0,0.29569321]
[1757658000608,0.28628,115500.0,115490.0,0.29569321]
[1757658002008,0.28628,115500.0,115490.0,0.30913321]
[1757658003504,0.27232,115500.0,115490.0,0.49467759]
[1757658005611,0.27232,115500.0,115490.0,0.85547759]
[1757658006409,0.27232,115500.0,115490.0,0.6081067]
[1757658012113,0.27232,115500.0,115490.0,0.53017787]
[1757658015218,0.27232,115500.0,115490.0,0.6081067]
[1757658020116,0.27232,115500.0,115490.0,0.73182457]
[1757658020319,0.27232,115500.0,115490.0,1.27334883]
[1757658020519,0.27232,115500.0,115490.0,1.3970667]
[1757658020720,0.27232,115500.0,115490.0,1.3970267]
[1757658022928,0.27232,115500.0,115490.0,1.31909787]
[1757658025032,0.27232,115500.0,115490.0,1.3970267]
[1757658026443,0.27232,115500.0,115490.0,1.52074457]
[1757658027043,0.001,115500.0,115490.0,1.52074457]
[1757658028440,0.001,115500.0,115490.0,1.69281574]
[1757658028735,0.001,115500.0,115490.0,1.77074457]
[1757658028942,0.001,115500.0,115490.0,1.69281574]
[1757658029343,0.001,115500.0,115490.0,1.69269574]
[1757658029846,0.001,115500.0,115490.0,0.90389574]
[1757658030036,0.001,115500.0,115490.0,1.80182968]
[1757658031545,0.001,115500.0,115490.0,1.69269574]
[1757658032747,0.001,115500.0,115490.0,1.80182968]
[1757658033744,0.001,115500.0,115490.0,1.69269574]
[1757658033945,0.001,115500.0,115490.0,1.80182968]
[1757658034142,0.001,115500.0,115490.0,1.87968673]
[1757658034340,0.001,115500.0,115490.0,1.77055279]
[1757658034841,0.001,115500.0,115490.0,1.69269574]
[1757658035349,0.001,115500.0,115490.0,1.77054216]
[1757658035939,0.001,115500.0,115490.0,1.80182968]
[1757658038339,0.001,115500.0,115490.0,1.77052929]
[1757658039043,0.001,115500.0,115490.0,1.60708749]
[1757658039248,0.02005068,115510.0,115500.0,0.03493]
[1757658039549,0.02005068,115510.0,115500.0,0.72099929]
[1757658039739,0.02005068,115510.0,115500.0,1.50967929]
[1757658040443,0.02005068,115510.0,115500.0,1.51832929]
[1757658040947,0.02005068,115510.0,115500.0,0.72964929]
[1757658041152,0.04214068,115510.0,115500.0,1.51828929]
[1757658041843,0.04214068,115510.0,115500.0,1.51928929]
[1757658042643,0.04114068,115510.0,115500.0,1.52028929]
[1757658042847,0.02105068,115510.0,115500.0,1.52028929]
[1757658043747,0.02105068,115510.0,115500.0,0.73164929]
[1757658043944,0.04214068,115510.0,115500.0,1.52024929]
[1757658046549,0.04214068,115510.0,115500.0,1.27281355]
[1757658046750,0.04214068,115510.0,115500.0,1.52024929]
[1757658047449,0.02105068,115510.0,115500.0,1.52024929]
[1757658048646,0.02105068,115510.0,115500.0,1.64396716]
[1757658049054,0.001,115510.0,115500.0,1.64396716]
[1757658049439,0.001,115510.0,115500.0,1.56613361]
[1757658050754,0.001,115510.0,115500.0,1.44241574]
[1757658052352,0.001,115510.0,115500.0,1.56613361]
[1757658053249,0.001,115510.0,115500.0,1.65268471]
[1757658053451,0.39567,115540.0,115530.0,0.02203]
[1757658053652,0.03487,115540.0,115530.0,0.03509]
[1757658053958,0.03487,115540.0,115530.0,0.15880787]
[1757658055052,0.03687,115540.0,115530.0,0.15980787]
[1757658055553,0.04087,115540.0,115530.0,0.16845787]
[1757658056356,0.04087,115540.0,115530.0,0.15539787]
[1757658057556,0.11122427,115540.0,115530.0,0.15539787]
[1757658059259,0.11122427,115540.0,115530.0,0.03168]
[1757658059554,0.11122427,115540.0,115530.0,0.15539787]
[1757658061060,0.04087,115540.0,115530.0,0.15539787]
[1757658062148,0.40167,115540.0,115530.0,0.03168]
[1757658062356,0.40167,115540.0,115530.0,0.15539787]
[1757658067859,0.04087,115540.0,115530.0,0.15539787]
[1757658068054,0.40167,115540.0,115530.0,0.15539787]
[1757658068548,0.40167,115540.0,115530.0,0.21716734]
[1757658070761,0.58715734,115540.0,115530.0,0.03168]
[1757658070958,0.58715734,115540.0,115530.0,0.21716734]
[1757658071561,0.58715734,115540.0,115530.0,0.03168]
[1757658071760,0.58715734,115540.0,115530.0,0.21716734]
[1757658073361,0.58715734,115540.0,115530.0,0.03168]
[1757658073864,0.58715734,115540.0,115530.0,0.21716734]
[1757658076265,0.40167,115540.0,115530.0,0.21716734]
[1757658076466,0.58715734,115540.0,115530.0,0.03168]
[1757658076665,0.58715734,115540.0,115530.0,0.21716734]
[1757658082074,0.40167,115540.0,115530.0,0.21716734]
[1757658082372,0.58715734,115540.0,115530.0,0.21716734]
[1757658084975,0.02736,115540.0,115530.0,0.41651468]
[1757658085875,0.02736,115540.0,115530.0,0.23102734]
[1757658086075,0.02736,115540.0,115530.0,0.41651468]
[1757658088073,0.02736,115540.0,115530.0,0.77731468]
[1757658100782,0.02736,115540.0,115530.0,0.40634]
[1757658100978,0.02736,115540.0,115530.0,0.77731468]
[1757658103279,0.02736,115540.0,115530.0,1.56531468]
[1757658106486,0.02736,115540.0,115530.0,0.77731468]
[1757658106687,0.02736,115540.0,115530.0,1.56527468]
[1757658117694,0.004,115540.0,115530.0,1.56527468]
[1757658117890,0.004,115540.0,115530.0,1.64307554]
[1757658119499,0.004,115540.0,115530.0,0.85511554]
[1757658119798,0.02547,115540.0,115530.0,0.85511554]
[1757658120097,0.02547,115540.0,115530.0,1.64295554]
[1757658121202,0.02547,115540.0,115530.0,0.85511554]
[1757658121393,0.02547,115540.0,115530.0,1.64295554]
[1757658121794,0.02547,115540.0,115530.0,1.27198086]
[1757658121994,0.02547,115540.0,115530.0,1.64295554]
[1757658126898,0.02547,115540.0,115530.0,0.49431554]
[1757658127207,0.02547,115540.0,115530.0,1.64287554]
[1757658130408,0.02547,115540.0,115530.0,1.3955414]
[1757658135613,0.02547,115540.0,115530.0,1.31770054]
[1757658141412,0.02547,115540.0,115530.0,1.3955014]
[1757658143016,0.02547,115540.0,115530.0,1.31770054]
[1757658144918,0.02547,115540.0,115530.0,0.95690054]
[1757658145118,0.02547,115540.0,115530.0,1.31770054]
[1757658145513,0.02547,115540.0,115530.0,1.3955014]
[1757658150812,0.004,115540.0,115530.0,1.3955014]
[1757658151018,0.004,115540.0,115530.0,1.51914194]
[1757658153425,0.004,115540.0,115530.0,1.44134108]
[1757658153822,0.004,115540.0,115530.0,1.51914194]
[1757658154217,0.004,115540.0,115530.0,1.44134108]
[1757658156919,0.004,115540.0,115530.0,1.51914194]
[1757658158622,0.004,115540.0,115530.0,1.44134108]
[1757658158829,0.004,115540.0,115530.0,1.51924462]
[1757658160223,0.004,115540.0,115530.0,1.55047502]
[1757658160929,0.004,115540.0,115530.0,0.76275502]
[1757658161130,0.004,115540.0,115530.0,1.55023502]
[1757658161323,0.004,115540.0,115530.0,1.44110108]
[1757658161724,0.004,115540.0,115530.0,0.65362108]
[1757658161924,0.004,115540.0,115530.0,1.44106108]
[1757658162721,0.004,115540.0,115530.0,1.51893206]
[1757658163933,0.004,115540.0,115530.0,0.73149206]
[1757658164133,0.004,115540.0,115530.0,1.51893206]
[1757658166333,0.004,115540.0,115530.0,0.73149206]
[1757658166834,0.004,115540.0,115530.0,1.51889206]
[1757658167332,0.004,115540.0,115530.0,1.44102108]
[1757658169328,0.004,115540.0,115530.0,1.51889206]
[1757658171233,0.004,115540.0,115530.0,0.73149206]
[1757658171535,0.004,115540.0,115530.0,1.51881206]
[1757658177939,0.004,115540.0,115530.0,0.73149206]
[1757658178241,0.004,115540.0,115530.0,1.51873206]
[1757658179238,0.004,115540.0,115530.0,1.44086108]
[1757658184546,0.004,115540.0,115530.0,1.51874588]
[1757658185749,0.004,115540.0,115530.0,0.73150588]
[1757658185947,0.004,115540.0,115530.0,1.51866588]
[1757658190357,0.004,115540.0,115530.0,1.64225878]
[1757658190742,0.004,115540.0,115530.0,0.85509878]
[1757658190947,0.02703,115540.0,115530.0,1.64217878]
[1757658191150,0.02703,115540.0,115530.0,1.56429398]
[1757658191940,0.004,115540.0,115530.0,1.56429398]
[1757658194756,0.004,115540.0,115530.0,1.64217878]
[1757658195555,0.004,115540.0,115530.0,1.28137878]
[1757658195854,0.004,115540.0,115530.0,1.64217878]
[1757658200760,0.004,115540.0,115530.0,1.2713048]
[1757658200960,0.004,115540.0,115530.0,1.64217878]
[1757658201360,0.004,115540.0,115530.0,1.56429398]
[1757658201767,0.004,115540.0,115530.0,1.56421398]
[1757658203360,0.004,115540.0,115530.0,1.64209878]
[1757658213066,0.004,115540.0,115530.0,0.85509878]
[1757658213270,0.02679,115540.0,115530.0,1.64193878]
[1757658214369,0.02679,115540.0,115530.0,0.85509878]
[1757658214568,0.02679,115540.0,115530.0,1.64193878]
[1757658219674,0.02679,115540.0,115530.0,0.85509878]
[1757658219878,0.02679,115540.0,115530.0,1.28109878]
[1757658220176,0.02679,115540.0,115530.0,1.64189878]
[1757658225978,0.02679,115540.0,115530.0,1.2710248]
[1757658226179,0.02679,115540.0,115530.0,1.64189878]
[1757658228379,0.02679,115540.0,115530.0,1.56401398]
[1757658228676,0.02679,115540.0,115530.0,0.77721398]
[1757658228877,0.02679,115540.0,115530.0,1.20313398]
[1757658233382,0.02679,115540.0,115530.0,0.41641398]
[1757658233581,0.02679,115540.0,115530.0,1.20309398]
[1757658235682,0.02679,115540.0,115530.0,1.28097878]
[1757658236976,0.02679,115540.0,115530.0,1.28093878]
[1757658246989,0.02679,115540.0,115530.0,0.9100648]
[1757658247189,0.02679,115540.0,115530.0,1.28093878]
[1757658247785,0.02679,115540.0,115530.0,1.28085878]
[1757658250894,0.02679,115540.0,115530.0,0.49429878]
[1757658251193,0.02679,115540.0,115530.0,1.28081878]
[1757658252396,0.02679,115540.0,115530.0,1.03358833]
[1757658255999,0.004,115540.0,115530.0,1.03358833]
[1757658257402,0.004,115540.0,115530.0,1.15723186]
[1757658260499,0.004,115540.0,115530.0,0.37071186]
[1757658260797,0.004,115540.0,115530.0,1.15719186]
[1757658265400,0.02622,115540.0,115530.0,0.37071186]
[1757658265703,0.02622,115540.0,115530.0,1.03346833]
[1757658266000,0.02622,115540.0,115530.0,0.24706833]
[1757658266300,0.02622,115540.0,115530.0,1.03346833]
[1757658266699,0.02622,115540.0,115530.0,0.24706833]
[1757658266903,0.02622,115540.0,115530.0,0.9098248]
[1757658267102,0.02622,115540.0,115530.0,1.03346833]
[1757658267601,0.02622,115540.0,115530.0,0.24706833]
[1757658267802,0.02622,115540.0,115530.0,1.03346833]
[1757658268006,0.77466353,115540.0,115530.0,0.1095648]
[1757658268201,0.77466353,115540.0,115530.0,0.15532353]
[1757658269205,0.92048361,115540.0,115530.0,0.03168]
[1757658270397,0.79684008,115540.0,115530.0,0.03168]
[1757658270592,0.92048361,115540.0,115530.0,0.03168]
[1757658271798,0.89830706,115540.0,115530.0,0.03168]
[1757658271999,0.89830706,115540.0,115530.0,0.00965]
[1757658272395,0.89830706,115540.0,115530.0,0.03074]
[1757658273508,0.77466353,115540.0,115530.0,0.03074]
[1757658273700,1.56106353,115540.0,115530.0,0.03074]
[1757658275103,1.92186353,115540.0,115530.0,0.03074]
[1757658276310,1.13546353,115540.0,115530.0,0.03074]
[1757658276512,1.13546353,115540.0,115530.0,0.15438353]
[1757658276911,1.92186353,115540.0,115530.0,0.15438353]
[1757658277612,1.13546353,115540.0,115530.0,0.15438353]
[1757658277813,1.92186353,115540.0,115530.0,0.15438353]
[1757658279214,1.01182,115540.0,115530.0,0.15438353]
[1757658279413,1.67182353,115540.0,115530.0,0.15438353]
[1757658286420,0.88546353,115540.0,115530.0,0.15438353]
[1757658286715,1.54818,115540.0,115530.0,0.16805353]
[1757658288212,1.54818,115540.0,115530.0,0.15438353]
[1757658288417,1.54818,115540.0,115530.0,0.03074]
[1757658288621,1.54818,115540.0,115530.0,0.15438353]
[1757658290019,0.76182,115540.0,115530.0,0.15438353]
[1757658290220,1.54814,115540.0,115530.0,0.15438353]
[1757658292620,0.76182,115540.0,115530.0,0.15438353]
[1757658292825,1.5481,115540.0,115530.0,0.15438353]
[1757658294523,1.5481,115540.0,115530.0,0.03074]
[1757658294919,1.5481,115540.0,115530.0,0.15438353]
[1757658295123,1.5481,115540.0,115530.0,0.41802353]
[1757658299625,1.5481,115540.0,115530.0,0.29438]
[1757658299825,1.5481,115540.0,115530.0,0.41802353]
[1757658300329,0.76182,115540.0,115530.0,0.41802353]
[1757658300626,1.54802,115540.0,115530.0,0.41802353]
[1757658300826,1.54802,115540.0,115530.0,0.40438353]
[1757658301430,1.67166353,115540.0,115530.0,0.00965]
[1757658301825,1.67166353,115540.0,115530.0,0.13329353]
[1757658302032,1.67166353,115540.0,115530.0,0.15517353]
[1757658305738,1.67166353,115540.0,115530.0,0.03153]
[1757658305936,1.67166353,115540.0,115530.0,0.15517353]
[1757658306440,1.67166353,115540.0,115530.0,0.03153]
[1757658306643,1.67166353,115540.0,115530.0,0.15517353]
[1757658307041,1.67166353,115540.0,115530.0,0.03153]
[1757658307544,1.67166353,115540.0,115530.0,0.13329353]
[1757658308743,1.67166353,115540.0,115530.0,0.00965]
[1757658310247,1.79530706,115540.0,115530.0,0.00965]
[1757658310440,1.81751201,115540.0,115530.0,0.00965]
[1757658310854,1.57022495,115540.0,115530.0,0.00965]
[1757658311052,1.81751201,115540.0,115530.0,0.00965]
[1757658311552,1.69386848,115540.0,115530.0,0.00965]
[1757658311755,1.81751201,115540.0,115530.0,0.00965]
[1757658311949,1.81743201,115540.0,115530.0,0.03153]
[1757658312343,1.69378848,115540.0,115530.0,0.03153]
[1757658313449,0.90766848,115540.0,115530.0,0.03153]
[1757658313653,1.67154353,115540.0,115530.0,0.03153]
[1757658314351,1.9189723,115540.0,115530.0,0.03153]
[1757658315149,1.1328923,115540.0,115530.0,0.03153]
[1757658315350,1.9189723,115540.0,115530.0,0.03153]
[1757658315650,1.9411782,115540.0,115530.0,0.03153]
[1757658315851,0.7840259,115540.0,115530.0,0.03153]
[1757658316053,1.9411782,115540.0,115530.0,0.03153]
[1757658317055,1.1550982,115540.0,115530.0,0.21706615]
[1757658317356,1.9411782,115540.0,115530.0,0.21706615]
[1757658319149,1.9411382,115540.0,115530.0,0.21706615]
[1757658322652,1.9411382,115540.0,115530.0,0.03153]
[1757658324256,1.9411382,115540.0,115530.0,0.00965]
[1757658324548,1.9411382,115540.0,115530.0,0.21849615]
[1757658325649,1.9189323,115540.0,115530.0,0.21849615]
[1757658326656,1.9189323,115540.0,115530.0,0.19518615]
[1757658326959,1.9189323,115540.0,115530.0,0.00965]
[1757658328555,1.94113286,115540.0,115530.0,0.00965]
[1757658329659,1.94113286,115540.0,115530.0,0.03296]
[1757658330447,1.94113286,115540.0,115530.0,0.00965]
[1757658334162,1.57006056,115540.0,115530.0,0.00965]
[1757658334462,1.94113286,115540.0,115530.0,0.00965]
[1757658336565,1.57006056,115540.0,115530.0,0.00965]
[1757658336766,1.94113286,115540.0,115530.0,0.00965]
[1757658337364,2.37666901,115540.0,115530.0,0.00965]
[1757658337666,0.03655,115510.0,115500.0,0.28673095]
[1757658337866,1.36876615,115510.0,115500.0,0.28673095]
[1757658338265,1.36876615,115510.0,115500.0,0.20884615]
[1757658339564,1.3774576,115510.0,115500.0,0.20884615]
[1757658339869,1.3784576,115510.0,115500.0,0.21184615]
[1757658341672,1.3784576,115510.0,115500.0,0.02631]
[1757658341866,1.3784576,115510.0,115500.0,0.21184615]
[1757658345869,1.3784576,115510.0,115500.0,0.02631]
[1757658346069,1.3784576,115510.0,115500.0,0.21184615]
[1757658347070,1.3784576,115510.0,115500.0,0.02631]
[1757658347260,1.3784576,115510.0,115500.0,0.21184615]
[1757658350568,1.3784576,115510.0,115500.0,0.02631]
[1757658350968,1.3784576,115510.0,115500.0,0.21184615]
[1757658351170,1.3784576,115510.0,115500.0,0.02631]
[1757658351370,1.3784576,115510.0,115500.0,0.21184615]
[1757658352273,1.3784576,115510.0,115500.0,0.02631]
[1757658352574,0.5925776,115510.0,115500.0,0.21074615]
[1757658352874,1.3784176,115510.0,115500.0,0.21074615]
[1757658353469,1.3784176,115510.0,115500.0,0.02521]
[1757658353671,1.3784176,115510.0,115500.0,0.21074615]
[1757658356175,1.3784176,115510.0,115500.0,0.02521]
[1757658356679,1.3784176,115510.0,115500.0,0.003]
[1757658357873,1.56395375,115510.0,115500.0,0.003]
[1757658358170,1.56395375,115510.0,115490.0,0.03086]
[1757658358171,0.05668408,115500.0,115490.0,0.03086]
[1757658358378,0.78855638,115500.0,115490.0,0.03086]
[1757658358673,0.78855638,115500.0,115490.0,0.00865]
[1757658358874,1.57459638,115500.0,115490.0,0.03086]
[1757658359476,1.57459638,115500.0,115490.0,0.03186]
[1757658359679,1.57559638,115500.0,115490.0,0.03286]
[1757658361381,1.57547638,115500.0,115490.0,0.03286]
[1757658362277,0.78955638,115500.0,115490.0,0.03286]